{"text_format":"1","workbook":"xlsx","n_sheets":3,"sheets":["Field Density","RX","Revisions"],"not_rendered":{"charts":0,"images":1,"macros":1,"external_links":0,"defined_names":2139,"comments":1,"pivot_tables":0},"unopened":[],"bounds":{"document_bytes":16777216,"sheet_cells":100000,"rows_first":2000,"rows_last":500,"rows_between":2000,"halvings":0,"cell_chars":16384,"cell_head_chars":4096},"cells_cut":0,"cells_raw":0,"read":"whole","date_system":"1900"}

{"sheet":"Field Density","index":0,"n_rows":160,"n_cols":36,"rows_kept":160,"cut":false,"hidden":false,"merged":[[17,20,17,22],[13,20,13,22],[14,20,14,22],[36,9,36,15],[8,8,8,14],[9,8,9,14],[10,8,10,14],[11,8,11,14],[12,8,12,14],[17,8,17,14],[8,20,8,22],[9,20,9,22],[10,20,10,22],[11,20,11,22],[13,15,13,19],[14,15,14,19],[12,20,12,22],[12,15,12,19],[16,1,16,7],[0,1,0,3],[10,1,10,7],[11,1,11,7],[14,1,14,7],[8,1,8,7],[9,1,9,7],[12,1,12,7],[13,1,13,7],[13,8,13,14],[14,8,14,14],[8,15,8,19],[9,15,9,19],[10,15,10,19],[11,15,11,19],[50,10,50,11],[15,8,15,22],[16,8,16,22],[48,1,48,2],[48,3,48,13],[48,14,48,15],[46,1,46,22],[19,1,19,8],[17,15,17,19],[15,1,15,7],[17,1,17,7],[19,17,19,18],[19,9,19,12],[19,13,19,16],[44,16,44,17],[159,1,159,8],[50,1,50,9],[50,12,50,14],[157,1,157,2],[157,3,157,4],[157,5,157,6],[157,7,157,8],[159,9,159,11],[34,16,34,17],[35,16,35,17],[36,16,36,17],[41,16,41,17],[42,16,42,17],[38,16,38,17],[39,16,39,17],[35,9,35,15],[34,9,34,15],[50,15,50,17],[29,9,29,15],[30,9,30,15],[31,9,31,15],[32,9,32,15],[29,16,29,17],[30,16,30,17],[31,16,31,17],[32,16,32,17],[42,9,42,15],[38,9,38,15],[39,9,39,15],[44,9,44,15],[41,9,41,15],[26,16,26,17],[27,16,27,17],[26,9,26,15],[27,9,27,15],[24,16,24,17],[24,9,24,15]]}
[null,"TxDOT Manuals >",null,null,null,null,null,null,null,null,null,null,null,null,null,null,null,null,null,null,null,null,null,null,null,null,null,null,null,null,null,null,null,null,"UPLC",24]
[null,"TEXAS DEPARTMENT OF TRANSPORTATION",null,null,null,null,null,null,null,null,null,null,null,null,null,null,null,null,null,null,null,null,null,null,null,null,null,null,null,null,null,null,null,null,"SN","tx115.xlsm::45505.64559"]
[null,null,null,null,null,null,null,null,null,null,null,null,null,null,null,null,null,null,null,null,null,null,null,null,null,null,null,null,null,null,null,null,null,null,"DLT",1]
[]
[null,"NUCLEAR DENSITY AND MOISTURE DETERMINATION",null,null,null,null,null,null,null,null,null,null,null,null,null,null,null,null,null,null,null,null,null,null,null,null,null,null,null,null,null,null,null,null,"IMPC",2024]
[]
[null,"Tex-115-E"]
[null,null,null,null,null,null,null,null,null,null,null,null,null,null,null,null,null,null,null,null,null,null,{"$f":"\"TX115 - File Version: \" & TEXT(MID(sn,SEARCH(\"::\",sn,1)+2,20),\"mm/dd/yy hh:mm:ss\")","v":"TX115 - File Version: 08/01/24 15:29:39"}]
[null,"SAMPLE ID:",null,null,null,null,null,null,null,null,null,null,null,null,null,"SAMPLED DATE:"]
[null,"TEST NUMBER:",null,null,null,null,null,null,null,null,null,null,null,null,null,"LETTING DATE:"]
[null,"SAMPLE STATUS:",null,null,null,null,null,null,null,null,null,null,null,null,null,"CONTROLLING CSJ:",null,null,null,null,""]
[null,"COUNTY:",null,null,null,null,null,null,null,null,null,null,null,null,null,"SPEC YEAR:"]
[null,"SAMPLED BY:",null,null,null,null,null,null,null,null,null,null,null,null,null,"SPEC ITEM:",null,null,null,null,""]
[null,"SAMPLE LOCATION:",null,null,null,null,null,null,null,null,null,null,null,null,null,"SPECIAL PROVISION:"]
[null,"MATERIAL CODE:",null,null,null,null,null,null,null,null,null,null,null,null,null,"GRADE:"]
[null,"MATERIAL NAME:"]
[null,"PRODUCER:",null,null,null,null,null,null,""]
[null,"AREA ENGINEER:",null,null,null,null,null,null,"",null,null,null,null,null,null,"PROJECT MANAGER:"]
[]
[null,"COURSE\\LIFT:",null,null,null,null,null,null,null,null,null,null,null,"STATION:",null,null,null,null,null,null,null,"DIST. FROM CL:",""]
[]
[null,null,null,null,null,null,null,null,null,null,null,false]
[null,"TARGET VALUES"]
[]
[null,null,null,null,null,null,null,null,null,"Determined by Test Method:"]
[]
[null,null,null,null,null,null,null,null,null,{"$f":"\"Maximum Dry Density, \"& IF(SpecYear=\"\",\"\",IF(SpecYear=\"1995\",\"Kg/m3\",\"Lbs/ft3\")) &\":\"","v":"Maximum Dry Density, :"}]
[null,null,null,null,null,null,null,null,null,"Optimum Moisture Content, %:"]
[]
[null,null,null,null,null,null,null,null,null,"Density Standard:"]
[null,null,null,null,null,null,null,null,null,"Density Count:"]
[null,null,null,null,null,null,null,null,null,"Moisture Standard:"]
[null,null,null,null,null,null,null,null,null,"Moisture Count:"]
[]
[null,null,null,null,null,null,null,null,null,{"$f":"\"Wet Density, \" & IF(SpecYear=\"\",\"\",IF(SpecYear=\"1995\",\"Kg/m3\",\"Lbs/ft3\")) & \":\"","v":"Wet Density, :"}]
[null,null,null,null,null,null,null,null,null,{"$f":"\"Dry Density, \" & IF(SpecYear=\"\",\"\",IF(SpecYear=\"1995\",\"Kg/m3\",\"Lbs/ft3\")) & \":\"","v":"Dry Density, :"}]
[null,null,null,null,null,null,null,null,null,"Moisture Content, %:"]
[]
[null,null,null,null,null,null,null,null,null,"Recorded Density (optional), %:"]
[null,null,null,null,null,null,null,null,null,"Calculated Density, %:",null,null,null,null,null,null,{"$f":"IF(OR(Q27=\"\",Q36=\"\",ISERROR(Q36/Q27*100)),\"\",Q36/Q27*100)","v":""}]
[]
[null,null,null,null,null,null,null,null,null,"Density Specification Requirement, %:"]
[null,null,null,null,null,null,null,null,null,"Moisture Specification Requirement, %:"]
[]
[null,null,null,null,null,null,null,null,null,"Stationing:"]
[null,"Remarks:",null,{"$f":"NOW()","v":"2024-08-01T15:29:39.420"}]
[]
[null,"Test:",null,"Tested By:",null,null,null,null,null,null,null,null,null,null,"Test Date:"]
[null,"TX115"]
[null,"Test Stamp Code:",null,null,null,null,null,null,null,null,"Omit Test:",null,"Completed Date:",null,null,"Reviewed By:"]
[null,""]
[null,null,null,null,"     *Required   **Optional   Fields"]
[null,"Test Number","Determined By Test:",{"$f":"\"Max Dry Density, \"& IF(SpecYear=\"\",\"\",IF(SpecYear=\"1995\",\"Kg/m3\",\"Lbs/ft3\")) &\"*\"","v":"Max Dry Density, *"},"Optimum Moisture Content","Density Spec. Required (%)","Moisture Spec. Required (%)","Density Standard","Density Count","Moisture Standard","Moisture Count",{"$f":"\"Wet Density, \" & IF(SpecYear=\"\",\"\",IF(SpecYear=\"1995\",\"Kg/m3\",\"Lbs/ft3\"))","v":"Wet Density, "},{"$f":"\"Dry Density, \" & IF(SpecYear=\"\",\"\",IF(SpecYear=\"1995\",\"Kg/m3\",\"Lbs/ft3\")) & \"*\"","v":"Dry Density, *"},"Moisture Content, (%)","Recorded Density (%) **","Calculated Density, (%)","Stationing","TX115 - Tested By","Test Date","Stamp Code","Omit","Complete Date","Remarks"]
[null,null,null,null,null,null,null,null,null,null,null,null,null,null,null,null,null,null,null,null,null,null,null,null,null,{"$f":"IF(SpecYear=\"\",\"\",SpecYear)","v":""},{"$f":"IF(Grade=\"\",\"\",Grade)","v":""},null,{"$f":"IF(SpecialProvision=\"\",\"\",SpecialProvision)","v":""}]
[null,"SMPL_TST_NBR","DETERMINED_BY_TEST_METHOD_07","MAXIMUM_DRY_DENSITY_08","OPTIMUM_MOISTURE_CONTENT_09","DENSITY_SPEC_REQ_18","MOISTURE_SPEC_REQ_19","DENSITY_STANDARD_10","DENSITY_COUNT_12","MOISTURE_STANDARD_11","MOISTURE_COUNT_13","WET_DENSITY_14","DRY_DENSITY_15","MOISTURE_CONTENT_16","RECORDED_DENSITY_17",{"$f":"IF(OR(D55=\"\",M55=\"\",ISERROR(M55/D55*100)),\"\",M55/D55*100)","v":""},"STATIONING_23","TESTED_BY_20","TESTED_DATE_21","STMP_CD","OMIT_IND","ACTL_CMPL_DT","REMARKS_01","SMPL_ID","TST_METH","SPEC_YEAR_02","GRADE_04","RVWR_UID","SPECIAL_PROVISION_03","OLD_PRODUCER_05","OLD_REVIEWED_BY_22","COURSE_06","AUTOTEMPLATE_24"]
[{"$f":"IF(COUNTBLANK(C56:W56)=21,0,1)","v":0},"~AT001",null,null,null,null,null,null,null,null,null,null,null,null,null,{"$f":"IF(OR(M56=\"\",AND($D$54=\"\",D56=\"\")),\"\",(M56/IF(D56=\"\",$D$54,D56))*100)","v":""},null,null,null,null,null,null,null,"A","TX115"]
[{"$f":"IF(COUNTBLANK(C57:W57)=21,0,1)","v":0},"~AT002",null,null,null,null,null,null,null,null,null,null,null,null,null,{"$f":"IF(OR(M57=\"\",AND($D$54=\"\",D57=\"\")),\"\",(M57/IF(D57=\"\",$D$54,D57))*100)","v":""},null,null,null,null,null,null,null,"A","TX115"]
[0,"~AT003",null,null,null,null,null,null,null,null,null,null,null,null,null,"",null,null,null,null,null,null,null,"A","TX115"]
[0,"~AT004",null,null,null,null,null,null,null,null,null,null,null,null,null,"",null,null,null,null,null,null,null,"A","TX115"]
[0,"~AT005",null,null,null,null,null,null,null,null,null,null,null,null,null,"",null,null,null,null,null,null,null,"A","TX115"]
[0,"~AT006",null,null,null,null,null,null,null,null,null,null,null,null,null,"",null,null,null,null,null,null,null,"A","TX115"]
[0,"~AT007",null,null,null,null,null,null,null,null,null,null,null,null,null,"",null,null,null,null,null,null,null,"A","TX115"]
[0,"~AT008",null,null,null,null,null,null,null,null,null,null,null,null,null,"",null,null,null,null,null,null,null,"A","TX115"]
[0,"~AT009",null,null,null,null,null,null,null,null,null,null,null,null,null,"",null,null,null,null,null,null,null,"A","TX115"]
[0,"~AT010",null,null,null,null,null,null,null,null,null,null,null,null,null,"",null,null,null,null,null,null,null,"A","TX115"]
[0,"~AT011",null,null,null,null,null,null,null,null,null,null,null,null,null,"",null,null,null,null,null,null,null,"A","TX115"]
[0,"~AT012",null,null,null,null,null,null,null,null,null,null,null,null,null,"",null,null,null,null,null,null,null,"A","TX115"]
[0,"~AT013",null,null,null,null,null,null,null,null,null,null,null,null,null,"",null,null,null,null,null,null,null,"A","TX115"]
[0,"~AT014",null,null,null,null,null,null,null,null,null,null,null,null,null,"",null,null,null,null,null,null,null,"A","TX115"]
[0,"~AT015",null,null,null,null,null,null,null,null,null,null,null,null,null,"",null,null,null,null,null,null,null,"A","TX115"]
[0,"~AT016",null,null,null,null,null,null,null,null,null,null,null,null,null,"",null,null,null,null,null,null,null,"A","TX115"]
[0,"~AT017",null,null,null,null,null,null,null,null,null,null,null,null,null,"",null,null,null,null,null,null,null,"A","TX115"]
[0,"~AT018",null,null,null,null,null,null,null,null,null,null,null,null,null,"",null,null,null,null,null,null,null,"A","TX115"]
[0,"~AT019",null,null,null,null,null,null,null,null,null,null,null,null,null,"",null,null,null,null,null,null,null,"A","TX115"]
[0,"~AT020",null,null,null,null,null,null,null,null,null,null,null,null,null,"",null,null,null,null,null,null,null,"A","TX115"]
[0,"~AT021",null,null,null,null,null,null,null,null,null,null,null,null,null,"",null,null,null,null,null,null,null,"A","TX115"]
[0,"~AT022",null,null,null,null,null,null,null,null,null,null,null,null,null,"",null,null,null,null,null,null,null,"A","TX115"]
[0,"~AT023",null,null,null,null,null,null,null,null,null,null,null,null,null,"",null,null,null,null,null,null,null,"A","TX115"]
[0,"~AT024",null,null,null,null,null,null,null,null,null,null,null,null,null,"",null,null,null,null,null,null,null,"A","TX115"]
[0,"~AT025",null,null,null,null,null,null,null,null,null,null,null,null,null,"",null,null,null,null,null,null,null,"A","TX115"]
[0,"~AT026",null,null,null,null,null,null,null,null,null,null,null,null,null,"",null,null,null,null,null,null,null,"A","TX115"]
[0,"~AT027",null,null,null,null,null,null,null,null,null,null,null,null,null,"",null,null,null,null,null,null,null,"A","TX115"]
[0,"~AT028",null,null,null,null,null,null,null,null,null,null,null,null,null,"",null,null,null,null,null,null,null,"A","TX115"]
[0,"~AT029",null,null,null,null,null,null,null,null,null,null,null,null,null,"",null,null,null,null,null,null,null,"A","TX115"]
[0,"~AT030",null,null,null,null,null,null,null,null,null,null,null,null,null,"",null,null,null,null,null,null,null,"A","TX115"]
[0,"~AT031",null,null,null,null,null,null,null,null,null,null,null,null,null,"",null,null,null,null,null,null,null,"A","TX115"]
[0,"~AT032",null,null,null,null,null,null,null,null,null,null,null,null,null,"",null,null,null,null,null,null,null,"A","TX115"]
[0,"~AT033",null,null,null,null,null,null,null,null,null,null,null,null,null,"",null,null,null,null,null,null,null,"A","TX115"]
[0,"~AT034",null,null,null,null,null,null,null,null,null,null,null,null,null,"",null,null,null,null,null,null,null,"A","TX115"]
[0,"~AT035",null,null,null,null,null,null,null,null,null,null,null,null,null,"",null,null,null,null,null,null,null,"A","TX115"]
[0,"~AT036",null,null,null,null,null,null,null,null,null,null,null,null,null,"",null,null,null,null,null,null,null,"A","TX115"]
[0,"~AT037",null,null,null,null,null,null,null,null,null,null,null,null,null,"",null,null,null,null,null,null,null,"A","TX115"]
[0,"~AT038",null,null,null,null,null,null,null,null,null,null,null,null,null,"",null,null,null,null,null,null,null,"A","TX115"]
[0,"~AT039",null,null,null,null,null,null,null,null,null,null,null,null,null,"",null,null,null,null,null,null,null,"A","TX115"]
[0,"~AT040",null,null,null,null,null,null,null,null,null,null,null,null,null,"",null,null,null,null,null,null,null,"A","TX115"]
[0,"~AT041",null,null,null,null,null,null,null,null,null,null,null,null,null,"",null,null,null,null,null,null,null,"A","TX115"]
[0,"~AT042",null,null,null,null,null,null,null,null,null,null,null,null,null,"",null,null,null,null,null,null,null,"A","TX115"]
[0,"~AT043",null,null,null,null,null,null,null,null,null,null,null,null,null,"",null,null,null,null,null,null,null,"A","TX115"]
[0,"~AT044",null,null,null,null,null,null,null,null,null,null,null,null,null,"",null,null,null,null,null,null,null,"A","TX115"]
[0,"~AT045",null,null,null,null,null,null,null,null,null,null,null,null,null,"",null,null,null,null,null,null,null,"A","TX115"]
[0,"~AT046",null,null,null,null,null,null,null,null,null,null,null,null,null,"",null,null,null,null,null,null,null,"A","TX115"]
[0,"~AT047",null,null,null,null,null,null,null,null,null,null,null,null,null,"",null,null,null,null,null,null,null,"A","TX115"]
[0,"~AT048",null,null,null,null,null,null,null,null,null,null,null,null,null,"",null,null,null,null,null,null,null,"A","TX115"]
[0,"~AT049",null,null,null,null,null,null,null,null,null,null,null,null,null,"",null,null,null,null,null,null,null,"A","TX115"]
[0,"~AT050",null,null,null,null,null,null,null,null,null,null,null,null,null,"",null,null,null,null,null,null,null,"A","TX115"]
[0,"~AT051",null,null,null,null,null,null,null,null,null,null,null,null,null,"",null,null,null,null,null,null,null,"A","TX115"]
[0,"~AT052",null,null,null,null,null,null,null,null,null,null,null,null,null,"",null,null,null,null,null,null,null,"A","TX115"]
[0,"~AT053",null,null,null,null,null,null,null,null,null,null,null,null,null,"",null,null,null,null,null,null,null,"A","TX115"]
[0,"~AT054",null,null,null,null,null,null,null,null,null,null,null,null,null,"",null,null,null,null,null,null,null,"A","TX115"]
[0,"~AT055",null,null,null,null,null,null,null,null,null,null,null,null,null,"",null,null,null,null,null,null,null,"A","TX115"]
[0,"~AT056",null,null,null,null,null,null,null,null,null,null,null,null,null,"",null,null,null,null,null,null,null,"A","TX115"]
[0,"~AT057",null,null,null,null,null,null,null,null,null,null,null,null,null,"",null,null,null,null,null,null,null,"A","TX115"]
[0,"~AT058",null,null,null,null,null,null,null,null,null,null,null,null,null,"",null,null,null,null,null,null,null,"A","TX115"]
[0,"~AT059",null,null,null,null,null,null,null,null,null,null,null,null,null,"",null,null,null,null,null,null,null,"A","TX115"]
[0,"~AT060",null,null,null,null,null,null,null,null,null,null,null,null,null,"",null,null,null,null,null,null,null,"A","TX115"]
[0,"~AT061",null,null,null,null,null,null,null,null,null,null,null,null,null,"",null,null,null,null,null,null,null,"A","TX115"]
[0,"~AT062",null,null,null,null,null,null,null,null,null,null,null,null,null,"",null,null,null,null,null,null,null,"A","TX115"]
[0,"~AT063",null,null,null,null,null,null,null,null,null,null,null,null,null,"",null,null,null,null,null,null,null,"A","TX115"]
[0,"~AT064",null,null,null,null,null,null,null,null,null,null,null,null,null,"",null,null,null,null,null,null,null,"A","TX115"]
[0,"~AT065",null,null,null,null,null,null,null,null,null,null,null,null,null,"",null,null,null,null,null,null,null,"A","TX115"]
[{"$f":"IF(COUNTBLANK(C121:W121)=21,0,1)","v":0},"~AT066",null,null,null,null,null,null,null,null,null,null,null,null,null,{"$f":"IF(OR(M121=\"\",AND($D$54=\"\",D121=\"\")),\"\",(M121/IF(D121=\"\",$D$54,D121))*100)","v":""},null,null,null,null,null,null,null,"A","TX115"]
[0,"~AT067",null,null,null,null,null,null,null,null,null,null,null,null,null,"",null,null,null,null,null,null,null,"A","TX115"]
[0,"~AT068",null,null,null,null,null,null,null,null,null,null,null,null,null,"",null,null,null,null,null,null,null,"A","TX115"]
[0,"~AT069",null,null,null,null,null,null,null,null,null,null,null,null,null,"",null,null,null,null,null,null,null,"A","TX115"]
[0,"~AT070",null,null,null,null,null,null,null,null,null,null,null,null,null,"",null,null,null,null,null,null,null,"A","TX115"]
[0,"~AT071",null,null,null,null,null,null,null,null,null,null,null,null,null,"",null,null,null,null,null,null,null,"A","TX115"]
[0,"~AT072",null,null,null,null,null,null,null,null,null,null,null,null,null,"",null,null,null,null,null,null,null,"A","TX115"]
[0,"~AT073",null,null,null,null,null,null,null,null,null,null,null,null,null,"",null,null,null,null,null,null,null,"A","TX115"]
[0,"~AT074",null,null,null,null,null,null,null,null,null,null,null,null,null,"",null,null,null,null,null,null,null,"A","TX115"]
[0,"~AT075",null,null,null,null,null,null,null,null,null,null,null,null,null,"",null,null,null,null,null,null,null,"A","TX115"]
[0,"~AT076",null,null,null,null,null,null,null,null,null,null,null,null,null,"",null,null,null,null,null,null,null,"A","TX115"]
[0,"~AT077",null,null,null,null,null,null,null,null,null,null,null,null,null,"",null,null,null,null,null,null,null,"A","TX115"]
[0,"~AT078",null,null,null,null,null,null,null,null,null,null,null,null,null,"",null,null,null,null,null,null,null,"A","TX115"]
[0,"~AT079",null,null,null,null,null,null,null,null,null,null,null,null,null,"",null,null,null,null,null,null,null,"A","TX115"]
[0,"~AT080",null,null,null,null,null,null,null,null,null,null,null,null,null,"",null,null,null,null,null,null,null,"A","TX115"]
[0,"~AT081",null,null,null,null,null,null,null,null,null,null,null,null,null,"",null,null,null,null,null,null,null,"A","TX115"]
[0,"~AT082",null,null,null,null,null,null,null,null,null,null,null,null,null,"",null,null,null,null,null,null,null,"A","TX115"]
[0,"~AT083",null,null,null,null,null,null,null,null,null,null,null,null,null,"",null,null,null,null,null,null,null,"A","TX115"]
[0,"~AT084",null,null,null,null,null,null,null,null,null,null,null,null,null,"",null,null,null,null,null,null,null,"A","TX115"]
[0,"~AT085",null,null,null,null,null,null,null,null,null,null,null,null,null,"",null,null,null,null,null,null,null,"A","TX115"]
[0,"~AT086",null,null,null,null,null,null,null,null,null,null,null,null,null,"",null,null,null,null,null,null,null,"A","TX115"]
[0,"~AT087",null,null,null,null,null,null,null,null,null,null,null,null,null,"",null,null,null,null,null,null,null,"A","TX115"]
[0,"~AT088",null,null,null,null,null,null,null,null,null,null,null,null,null,"",null,null,null,null,null,null,null,"A","TX115"]
[0,"~AT089",null,null,null,null,null,null,null,null,null,null,null,null,null,"",null,null,null,null,null,null,null,"A","TX115"]
[0,"~AT090",null,null,null,null,null,null,null,null,null,null,null,null,null,"",null,null,null,null,null,null,null,"A","TX115"]
[0,"~AT091",null,null,null,null,null,null,null,null,null,null,null,null,null,"",null,null,null,null,null,null,null,"A","TX115"]
[0,"~AT092",null,null,null,null,null,null,null,null,null,null,null,null,null,"",null,null,null,null,null,null,null,"A","TX115"]
[0,"~AT093",null,null,null,null,null,null,null,null,null,null,null,null,null,"",null,null,null,null,null,null,null,"A","TX115"]
[0,"~AT094",null,null,null,null,null,null,null,null,null,null,null,null,null,"",null,null,null,null,null,null,null,"A","TX115"]
[0,"~AT095",null,null,null,null,null,null,null,null,null,null,null,null,null,"",null,null,null,null,null,null,null,"A","TX115"]
[0,"~AT096",null,null,null,null,null,null,null,null,null,null,null,null,null,"",null,null,null,null,null,null,null,"A","TX115"]
[0,"~AT097",null,null,null,null,null,null,null,null,null,null,null,null,null,"",null,null,null,null,null,null,null,"A","TX115"]
[0,"~AT098",null,null,null,null,null,null,null,null,null,null,null,null,null,"",null,null,null,null,null,null,null,"A","TX115"]
[0,"~AT099",null,null,null,null,null,null,null,null,null,null,null,null,null,"",null,null,null,null,null,null,null,"A","TX115"]
[0,"~AT100",null,null,null,null,null,null,null,null,null,null,null,null,null,"",null,null,null,null,null,null,null,"A","TX115"]
[]
[null,"Locked By:",null,"TxDOT:",null,"District:",null,"Area:"]
[null,"",null,"",null,"",null,""]
[null,"Authorized By:",null,null,null,null,null,null,null,"Authorized Date:"]
[null,""]

{"sheet":"RX","index":1,"n_rows":20,"n_cols":9,"rows_kept":20,"cut":false,"hidden":true,"merged":[]}
[18]
["Fld_nbr","Value","Desc_1","Desc_2","Desc_3","Desc_4","Desc_5","Desc_6","Desc_7"]
[1,{"$f":"IF('Field Density'!$B$47=\"\",\"\",'Field Density'!$B$47)","v":""},{"$f":"'Field Density'!$B$46","v":"Remarks:"}]
[2,{"$f":"IF('Field Density'!$J$20=\"\",\"\",'Field Density'!$J$20)","v":""},{"$f":"IF('Field Density'!$B$20=\"\",\"\",'Field Density'!$B$20)","v":"COURSE\\LIFT:"}]
[3,{"$f":"IF('Field Density'!$D$49=\"\",\"\",'Field Density'!$D$49)","v":""},"Tested By ",{"$f":"IF('Field Density'!$B$49=\"\",\"\",'Field Density'!$B$49)","v":"TX115"}]
[4,{"$f":"IF('Field Density'!$O$49=\"\",\"\",'Field Density'!$O$49)","v":""},"Tested Date ",{"$f":"IF('Field Density'!$B$49=\"\",\"\",'Field Density'!$B$49)","v":"TX115"}]
[5,{"$f":"IF('Field Density'!$Q$27=\"\",\"\",'Field Density'!$Q$27)","v":""},{"$f":"IF('Field Density'!$B$7=\"\",\"\",'Field Density'!$B$7)","v":"Tex-115-E"},{"$f":"IF('Field Density'!$J$27=\"\",\"\",'Field Density'!$J$27)","v":"Maximum Dry Density, :"},{"$f":"IF('Field Density'!$J$25=\"\",\"\",'Field Density'!$J$25)","v":"Determined by Test Method:"},{"$f":"IF('Field Density'!$Q$25=\"\",\"\",'Field Density'!$Q$25)","v":""}]
[6,{"$f":"IF('Field Density'!$Q$28=\"\",\"\",'Field Density'!$Q$28)","v":""},{"$f":"IF('Field Density'!$B$7=\"\",\"\",'Field Density'!$B$7)","v":"Tex-115-E"},{"$f":"IF('Field Density'!$J$28=\"\",\"\",'Field Density'!$J$28)","v":"Optimum Moisture Content, %:"},{"$f":"IF('Field Density'!$J$25=\"\",\"\",'Field Density'!$J$25)","v":"Determined by Test Method:"},{"$f":"IF('Field Density'!$Q$25=\"\",\"\",'Field Density'!$Q$25)","v":""}]
[7,{"$f":"IF('Field Density'!$Q$30=\"\",\"\",'Field Density'!$Q$30)","v":""},{"$f":"IF('Field Density'!$B$7=\"\",\"\",'Field Density'!$B$7)","v":"Tex-115-E"},{"$f":"IF('Field Density'!$J$30=\"\",\"\",'Field Density'!$J$30)","v":"Density Standard:"},{"$f":"IF('Field Density'!$J$25=\"\",\"\",'Field Density'!$J$25)","v":"Determined by Test Method:"},{"$f":"IF('Field Density'!$Q$25=\"\",\"\",'Field Density'!$Q$25)","v":""}]
[8,{"$f":"IF('Field Density'!$Q$31=\"\",\"\",'Field Density'!$Q$31)","v":""},{"$f":"IF('Field Density'!$B$7=\"\",\"\",'Field Density'!$B$7)","v":"Tex-115-E"},{"$f":"IF('Field Density'!$J$31=\"\",\"\",'Field Density'!$J$31)","v":"Density Count:"},{"$f":"IF('Field Density'!$J$25=\"\",\"\",'Field Density'!$J$25)","v":"Determined by Test Method:"},{"$f":"IF('Field Density'!$Q$25=\"\",\"\",'Field Density'!$Q$25)","v":""}]
[9,{"$f":"IF('Field Density'!$Q$32=\"\",\"\",'Field Density'!$Q$32)","v":""},{"$f":"IF('Field Density'!$B$7=\"\",\"\",'Field Density'!$B$7)","v":"Tex-115-E"},{"$f":"IF('Field Density'!$J$32=\"\",\"\",'Field Density'!$J$32)","v":"Moisture Standard:"},{"$f":"IF('Field Density'!$J$25=\"\",\"\",'Field Density'!$J$25)","v":"Determined by Test Method:"},{"$f":"IF('Field Density'!$Q$25=\"\",\"\",'Field Density'!$Q$25)","v":""}]
[10,{"$f":"IF('Field Density'!$Q$33=\"\",\"\",'Field Density'!$Q$33)","v":""},{"$f":"IF('Field Density'!$B$7=\"\",\"\",'Field Density'!$B$7)","v":"Tex-115-E"},{"$f":"IF('Field Density'!$J$33=\"\",\"\",'Field Density'!$J$33)","v":"Moisture Count:"},{"$f":"IF('Field Density'!$J$25=\"\",\"\",'Field Density'!$J$25)","v":"Determined by Test Method:"},{"$f":"IF('Field Density'!$Q$25=\"\",\"\",'Field Density'!$Q$25)","v":""}]
[11,{"$f":"IF('Field Density'!$Q$35=\"\",\"\",'Field Density'!$Q$35)","v":""},{"$f":"IF('Field Density'!$B$7=\"\",\"\",'Field Density'!$B$7)","v":"Tex-115-E"},{"$f":"IF('Field Density'!$J$35=\"\",\"\",'Field Density'!$J$35)","v":"Wet Density, :"},{"$f":"IF('Field Density'!$J$25=\"\",\"\",'Field Density'!$J$25)","v":"Determined by Test Method:"},{"$f":"IF('Field Density'!$Q$25=\"\",\"\",'Field Density'!$Q$25)","v":""}]
[12,{"$f":"IF('Field Density'!$Q$36=\"\",\"\",'Field Density'!$Q$36)","v":""},{"$f":"IF('Field Density'!$B$7=\"\",\"\",'Field Density'!$B$7)","v":"Tex-115-E"},{"$f":"IF('Field Density'!$J$36=\"\",\"\",'Field Density'!$J$36)","v":"Dry Density, :"},{"$f":"IF('Field Density'!$J$25=\"\",\"\",'Field Density'!$J$25)","v":"Determined by Test Method:"},{"$f":"IF('Field Density'!$Q$25=\"\",\"\",'Field Density'!$Q$25)","v":""}]
[13,{"$f":"IF('Field Density'!$Q$37=\"\",\"\",'Field Density'!$Q$37)","v":""},{"$f":"IF('Field Density'!$B$7=\"\",\"\",'Field Density'!$B$7)","v":"Tex-115-E"},{"$f":"IF('Field Density'!$J$37=\"\",\"\",'Field Density'!$J$37)","v":"Moisture Content, %:"},{"$f":"IF('Field Density'!$J$25=\"\",\"\",'Field Density'!$J$25)","v":"Determined by Test Method:"},{"$f":"IF('Field Density'!$Q$25=\"\",\"\",'Field Density'!$Q$25)","v":""}]
[14,{"$f":"IF('Field Density'!$Q$39=\"\",\"\",'Field Density'!$Q$39)","v":""},{"$f":"IF('Field Density'!$B$7=\"\",\"\",'Field Density'!$B$7)","v":"Tex-115-E"},{"$f":"IF('Field Density'!$J$39=\"\",\"\",'Field Density'!$J$39)","v":"Recorded Density (optional), %:"},{"$f":"IF('Field Density'!$J$25=\"\",\"\",'Field Density'!$J$25)","v":"Determined by Test Method:"},{"$f":"IF('Field Density'!$Q$25=\"\",\"\",'Field Density'!$Q$25)","v":""}]
[15,{"$f":"IF('Field Density'!$Q$40=\"\",\"\",'Field Density'!$Q$40)","v":""},{"$f":"IF('Field Density'!$B$7=\"\",\"\",'Field Density'!$B$7)","v":"Tex-115-E"},{"$f":"IF('Field Density'!$J$40=\"\",\"\",'Field Density'!$J$40)","v":"Calculated Density, %:"},{"$f":"IF('Field Density'!$J$25=\"\",\"\",'Field Density'!$J$25)","v":"Determined by Test Method:"},{"$f":"IF('Field Density'!$Q$25=\"\",\"\",'Field Density'!$Q$25)","v":""}]
[16,{"$f":"IF('Field Density'!$Q$42=\"\",\"\",'Field Density'!$Q$42)","v":""},{"$f":"IF('Field Density'!$B$7=\"\",\"\",'Field Density'!$B$7)","v":"Tex-115-E"},{"$f":"IF('Field Density'!$J$42=\"\",\"\",'Field Density'!$J$42)","v":"Density Specification Requirement, %:"},{"$f":"IF('Field Density'!$J$25=\"\",\"\",'Field Density'!$J$25)","v":"Determined by Test Method:"},{"$f":"IF('Field Density'!$Q$25=\"\",\"\",'Field Density'!$Q$25)","v":""}]
[17,{"$f":"IF('Field Density'!$Q$43=\"\",\"\",'Field Density'!$Q$43)","v":""},{"$f":"IF('Field Density'!$B$7=\"\",\"\",'Field Density'!$B$7)","v":"Tex-115-E"},{"$f":"IF('Field Density'!$J$43=\"\",\"\",'Field Density'!$J$43)","v":"Moisture Specification Requirement, %:"},{"$f":"IF('Field Density'!$J$25=\"\",\"\",'Field Density'!$J$25)","v":"Determined by Test Method:"},{"$f":"IF('Field Density'!$Q$25=\"\",\"\",'Field Density'!$Q$25)","v":""}]
[18,{"$f":"IF('Field Density'!$Q$45=\"\",\"\",'Field Density'!$Q$45)","v":""},{"$f":"IF('Field Density'!$B$7=\"\",\"\",'Field Density'!$B$7)","v":"Tex-115-E"},{"$f":"IF('Field Density'!$J$45=\"\",\"\",'Field Density'!$J$45)","v":"Stationing:"},{"$f":"IF('Field Density'!$J$25=\"\",\"\",'Field Density'!$J$25)","v":"Determined by Test Method:"},{"$f":"IF('Field Density'!$Q$25=\"\",\"\",'Field Density'!$Q$25)","v":""}]

{"sheet":"Revisions","index":2,"n_rows":2,"n_cols":11,"rows_kept":2,"cut":false,"hidden":true,"merged":[[5,1,5,9],[0,1,0,9],[1,1,1,9],[2,1,2,9],[3,1,3,9],[4,1,4,9],[17,1,17,9],[6,1,6,9],[7,1,7,9],[8,1,8,9],[9,1,9,9],[10,1,10,9],[11,1,11,9],[12,1,12,9],[13,1,13,9],[14,1,14,9],[15,1,15,9],[16,1,16,9],[29,1,29,9],[18,1,18,9],[19,1,19,9],[20,1,20,9],[21,1,21,9],[22,1,22,9],[23,1,23,9],[24,1,24,9],[25,1,25,9],[26,1,26,9],[27,1,27,9],[28,1,28,9],[36,1,36,9],[37,1,37,9],[38,1,38,9],[39,1,39,9],[30,1,30,9],[31,1,31,9],[32,1,32,9],[33,1,33,9],[34,1,34,9],[35,1,35,9]]}
["DATE","DESCRIPTION",null,null,null,null,null,null,null,null,"BY"]
["2016-10-06","Remove SDEWITT from workbook.",null,null,null,null,null,null,null,null,"CPFEIFF"]